[Event "Titled Tuesday Blitz October 26 2021"]
[White "Andreikin, Dmitry"]
[Black "Kovalchuk, Alexey"]
[WhiteFideId "4158814"]
[BlackFideId "24154385"]
[WhiteElo "2736"]
[BlackElo "2287"]
[Result "1-0"]
[Round "02"]
[TimeControl "180+1"]
[Date "2021.10.26"]
[WhiteClock "0:01:05"]
[BlackClock "0:00:04"]

1. d4 {[%clk 0:03:00]}  d5 {[%clk 0:02:58]} 2. c4 {[%clk 0:02:59]}  dxc4 {[%clk 0:02:55]} 3. e3 {[%clk 0:03:00]}  Nf6 {[%clk 0:02:54]} 4. Bxc4 {[%clk 0:02:59]}  e6 {[%clk 0:02:54]} 5. Nf3 {[%clk 0:02:59]}  c5 {[%clk 0:02:54]} 6. O-O {[%clk 0:02:59]}  a6 {[%clk 0:02:55]} 7. dxc5 {[%clk 0:02:59]}  Bxc5 {[%clk 0:02:55]} 8. Qxd8+ {[%clk 0:02:58]}  Kxd8 {[%clk 0:02:55]} 9. Ne5 {[%clk 0:02:54]}  Ke7 {[%clk 0:02:52]} 10. Be2 {[%clk 0:02:54]}  Nbd7 {[%clk 0:02:45]} 11. Nc4 {[%clk 0:02:52]}  Nb6 {[%clk 0:02:24]} 12. b4 {[%clk 0:02:48]}  Nxc4 {[%clk 0:02:18]} 13. bxc5 {[%clk 0:02:48]}  Ne5 {[%clk 0:02:16]} 14. Ba3 {[%clk 0:02:40]}  Nc6 {[%clk 0:02:11]} 15. Nd2 {[%clk 0:02:40]}  Nd5 {[%clk 0:02:09]} 16. Rfc1 {[%clk 0:02:35]}  Rd8 {[%clk 0:02:02]} 17. Nc4 {[%clk 0:02:35]}  Bd7 {[%clk 0:01:54]} 18. Rab1 {[%clk 0:02:34]}  Rab8 {[%clk 0:01:54]} 19. Bf3 {[%clk 0:02:32]}  f6 {[%clk 0:01:20]} 20. Nd6 {[%clk 0:02:31]}  Bc8 {[%clk 0:01:08]} 21. h4 {[%clk 0:02:21]}  Kd7 {[%clk 0:01:01]} 22. h5 {[%clk 0:02:12]}  Kc7 {[%clk 0:00:58]} 23. Be4 {[%clk 0:02:08]}  h6 {[%clk 0:00:48]} 24. g3 {[%clk 0:02:03]}  Bd7 {[%clk 0:00:34]} 25. Rb2 {[%clk 0:02:03]}  Nce7 {[%clk 0:00:20]} 26. Bg2 {[%clk 0:01:52]}  f5 {[%clk 0:00:15]} 27. Rbb1 {[%clk 0:01:41]}  Bc6 {[%clk 0:00:15]} 28. Bb2 {[%clk 0:01:42]}  Nf6 {[%clk 0:00:13]} 29. Nf7 {[%clk 0:01:37]}  Nxh5 {[%clk 0:00:03]} 30. Be5+ {[%clk 0:01:36]}  Kd7 {[%clk 0:00:03]} 31. Nxd8 {[%clk 0:01:24]}  Rxd8 {[%clk 0:00:03]} 32. Rxb7+ {[%clk 0:01:21]}  Bxb7 {[%clk 0:00:03]} 33. Bxb7 {[%clk 0:01:22]}  Nc6 {[%clk 0:00:03]} 34. Rd1+ {[%clk 0:01:21]}  Ke7 {[%clk 0:00:04]} 35. Bd6+ {[%clk 0:01:20]}  Kd7 {[%clk 0:00:04]} 36. Bxa6 {[%clk 0:01:12]}  Nf6 {[%clk 0:00:04]} 37. Bb5 {[%clk 0:01:12]}  Nd5 {[%clk 0:00:04]} 38. a4 {[%clk 0:01:09]}  Ra8 {[%clk 0:00:04]} 39. Rd2 {[%clk 0:01:05]}  g5 {[%clk 0:00:04]} 40. g4 {[%clk 0:01:05]}  fxg4 {[%clk 0:00:04]} 41. e4 {[%clk 0:01:05]}  Nc3 {[%clk 0:00:04]} 42. Be5+ {[%clk 0:01:05]} 1-0


[Site "https://www.chess.com"]

[Event "Titled Tuesday Blitz October 26 2021"]
[White "Bartel, Michal"]
[Black "Urazayev, Arystanbek"]
[WhiteFideId "1119257"]
[BlackFideId "13709810"]
[WhiteElo "2211"]
[BlackElo "2321"]
[Result "1-0"]
[Round "02"]
[TimeControl "180+1"]
[Date "2021.10.26"]
[WhiteClock "0:00:29"]
[BlackClock "0:00:16"]

1. e4 {[%clk 0:02:59]}  c6 {[%clk 0:03:00]} 2. d4 {[%clk 0:02:58]}  d5 {[%clk 0:03:00]} 3. e5 {[%clk 0:02:58]}  c5 {[%clk 0:03:01]} 4. c4 {[%clk 0:02:58]}  cxd4 {[%clk 0:03:00]} 5. Nf3 {[%clk 0:02:53]}  Nc6 {[%clk 0:02:59]} 6. cxd5 {[%clk 0:02:52]}  Qxd5 {[%clk 0:02:54]} 7. Nc3 {[%clk 0:02:52]}  Qa5 {[%clk 0:02:53]} 8. Nxd4 {[%clk 0:02:53]}  Qxe5+ {[%clk 0:02:51]} 9. Be3 {[%clk 0:02:53]}  Nxd4 {[%clk 0:02:51]} 10. Qxd4 {[%clk 0:02:52]}  Qxd4 {[%clk 0:02:51]} 11. Bxd4 {[%clk 0:02:52]}  Bd7 {[%clk 0:01:45]} 12. Nb5 {[%clk 0:02:33]}  Rc8 {[%clk 0:01:34]} 13. Nxa7 {[%clk 0:02:33]}  Rd8 {[%clk 0:01:17]} 14. Nb5 {[%clk 0:02:24]}  Bc6 {[%clk 0:01:08]} 15. O-O-O {[%clk 0:02:21]}  Rc8 {[%clk 0:00:48]} 16. Na7 {[%clk 0:02:07]}  Ra8 {[%clk 0:00:38]} 17. Nxc6 {[%clk 0:02:08]}  bxc6 {[%clk 0:00:38]} 18. Bc4 {[%clk 0:02:05]}  e6 {[%clk 0:00:36]} 19. Rhe1 {[%clk 0:01:57]}  Ne7 {[%clk 0:00:36]} 20. f4 {[%clk 0:01:55]}  Nf5 {[%clk 0:00:31]} 21. Be5 {[%clk 0:01:48]}  Bb4 {[%clk 0:00:30]} 22. Re4 {[%clk 0:01:42]}  Bc5 {[%clk 0:00:24]} 23. Rd3 {[%clk 0:01:18]}  O-O {[%clk 0:00:23]} 24. g4 {[%clk 0:01:16]}  Ne7 {[%clk 0:00:23]} 25. Rd7 {[%clk 0:01:11]}  Nd5 {[%clk 0:00:22]} 26. f5 {[%clk 0:01:06]}  exf5 {[%clk 0:00:19]} 27. gxf5 {[%clk 0:01:06]}  Rfd8 {[%clk 0:00:19]} 28. Rxd8+ {[%clk 0:01:03]}  Rxd8 {[%clk 0:00:20]} 29. Bg3 {[%clk 0:00:57]}  Kf8 {[%clk 0:00:15]} 30. Bb3 {[%clk 0:00:50]}  f6 {[%clk 0:00:15]} 31. Re1 {[%clk 0:00:24]}  Nb4 {[%clk 0:00:14]} 32. Kb1 {[%clk 0:00:22]}  Bd4 {[%clk 0:00:10]} 33. Rd1 {[%clk 0:00:21]}  c5 {[%clk 0:00:10]} 34. a3 {[%clk 0:00:21]}  Nc6 {[%clk 0:00:10]} 35. Ba4 {[%clk 0:00:21]}  Ne5 {[%clk 0:00:10]} 36. Bc2 {[%clk 0:00:20]}  Rb8 {[%clk 0:00:10]} 37. b3 {[%clk 0:00:21]}  Ra8 {[%clk 0:00:10]} 38. Ka2 {[%clk 0:00:21]}  Ke7 {[%clk 0:00:10]} 39. Rd2 {[%clk 0:00:21]}  Kd6 {[%clk 0:00:10]} 40. Bf2 {[%clk 0:00:21]}  Kd5 {[%clk 0:00:11]} 41. Bd1 {[%clk 0:00:22]}  Rb8 {[%clk 0:00:10]} 42. Bxd4 {[%clk 0:00:22]}  cxd4 {[%clk 0:00:11]} 43. Bc2 {[%clk 0:00:22]}  Rc8 {[%clk 0:00:10]} 44. b4 {[%clk 0:00:22]}  Rc3 {[%clk 0:00:10]} 45. Bb3+ {[%clk 0:00:22]}  Ke4 {[%clk 0:00:11]} 46. b5 {[%clk 0:00:23]}  Nd7 {[%clk 0:00:09]} 47. a4 {[%clk 0:00:22]}  Nc5 {[%clk 0:00:10]} 48. Rb2 {[%clk 0:00:23]}  d3 {[%clk 0:00:10]} 49. b6 {[%clk 0:00:23]}  d2 {[%clk 0:00:10]} 50. Rxd2 {[%clk 0:00:22]}  Rxb3 {[%clk 0:00:10]} 51. Rc2 {[%clk 0:00:22]}  Rxb6 {[%clk 0:00:09]} 52. Rxc5 {[%clk 0:00:23]}  h5 {[%clk 0:00:08]} 53. a5 {[%clk 0:00:23]}  Ra6 {[%clk 0:00:09]} 54. Ka3 {[%clk 0:00:24]}  h4 {[%clk 0:00:09]} 55. Kb4 {[%clk 0:00:24]}  Rd6 {[%clk 0:00:09]} 56. Kb5 {[%clk 0:00:24]}  Rd2 {[%clk 0:00:09]} 57. a6 {[%clk 0:00:24]}  Rxh2 {[%clk 0:00:09]} 58. a7 {[%clk 0:00:25]}  Ra2 {[%clk 0:00:10]} 59. Rc4+ {[%clk 0:00:25]}  Kf3 {[%clk 0:00:10]} 60. Ra4 {[%clk 0:00:26]}  Rxa4 {[%clk 0:00:09]} 61. Kxa4 {[%clk 0:00:27]}  h3 {[%clk 0:00:10]} 62. a8=Q+ {[%clk 0:00:27]}  Kf2 {[%clk 0:00:10]} 63. Qa7+ {[%clk 0:00:28]}  Kg3 {[%clk 0:00:11]} 64. Qxg7+ {[%clk 0:00:28]}  Kf4 {[%clk 0:00:11]} 65. Qxf6 {[%clk 0:00:29]}  h2 {[%clk 0:00:11]} 66. Qh6+ {[%clk 0:00:30]}  Kg3 {[%clk 0:00:12]} 67. f6 {[%clk 0:00:30]}  Kg4 {[%clk 0:00:13]} 68. f7 {[%clk 0:00:30]}  h1=Q {[%clk 0:00:14]} 69. Qxh1 {[%clk 0:00:29]}  Kf5 {[%clk 0:00:15]} 70. f8=Q+ {[%clk 0:00:30]}  Kg6 {[%clk 0:00:16]} 71. Qg2+ {[%clk 0:00:29]}  Kh5 {[%clk 0:00:16]} 72. Qh8# {[%clk 0:00:29]} 1-0


[Site "https://www.chess.com"]

[Event "Titled Tuesday Blitz October 26 2021"]
[White "Fries-Nielsen, Jens Ove"]
[Black "Indjic, Aleksandar"]
[WhiteFideId "1400142"]
[BlackFideId "911925"]
[WhiteElo "2555"]
[BlackElo "2643"]
[Result "0-1"]
[Round "02"]
[TimeControl "180+1"]
[Date "2021.10.26"]
[WhiteClock "0:00:57"]
[BlackClock "0:00:32"]

1. e4 {[%clk 0:03:00]}  c5 {[%clk 0:02:58]} 2. f4 {[%clk 0:03:00]}  Nc6 {[%clk 0:02:59]} 3. Nf3 {[%clk 0:03:00]}  d5 {[%clk 0:02:58]} 4. exd5 {[%clk 0:02:59]}  Qxd5 {[%clk 0:02:58]} 5. Nc3 {[%clk 0:03:00]}  Qd8 {[%clk 0:02:58]} 6. Bb5 {[%clk 0:02:59]}  Bd7 {[%clk 0:02:57]} 7. O-O {[%clk 0:02:59]}  Nf6 {[%clk 0:02:52]} 8. Ne5 {[%clk 0:02:58]}  Rc8 {[%clk 0:02:51]} 9. Nxd7 {[%clk 0:02:56]}  Qxd7 {[%clk 0:02:52]} 10. d3 {[%clk 0:02:56]}  g6 {[%clk 0:02:50]} 11. Ne4 {[%clk 0:02:52]}  Bg7 {[%clk 0:02:44]} 12. Be3 {[%clk 0:02:49]}  b6 {[%clk 0:02:43]} 13. Qf3 {[%clk 0:02:43]}  O-O {[%clk 0:02:36]} 14. c3 {[%clk 0:02:43]}  Nd5 {[%clk 0:02:33]} 15. Rad1 {[%clk 0:02:41]}  Nxe3 {[%clk 0:02:31]} 16. Qxe3 {[%clk 0:02:41]}  Qc7 {[%clk 0:02:28]} 17. Bxc6 {[%clk 0:02:38]}  Qxc6 {[%clk 0:02:29]} 18. f5 {[%clk 0:02:38]}  Rcd8 {[%clk 0:02:26]} 19. Rf3 {[%clk 0:02:38]}  Rd5 {[%clk 0:02:24]} 20. Rdf1 {[%clk 0:02:37]}  Qd7 {[%clk 0:02:21]} 21. fxg6 {[%clk 0:02:25]}  hxg6 {[%clk 0:02:18]} 22. Qf2 {[%clk 0:02:09]}  e6 {[%clk 0:01:38]} 23. Qh4 {[%clk 0:02:07]}  Rh5 {[%clk 0:01:35]} 24. Qg3 {[%clk 0:02:06]}  Qe7 {[%clk 0:01:34]} 25. Nf6+ {[%clk 0:02:05]}  Bxf6 {[%clk 0:01:33]} 26. Rxf6 {[%clk 0:02:06]}  Rh7 {[%clk 0:01:32]} 27. Qg5 {[%clk 0:02:03]}  Qd7 {[%clk 0:01:29]} 28. R1f3 {[%clk 0:01:56]}  Rd8 {[%clk 0:01:25]} 29. h4 {[%clk 0:01:52]}  Qd5 {[%clk 0:01:23]} 30. Qg3 {[%clk 0:01:45]}  Qh5 {[%clk 0:01:21]} 31. Qc7 {[%clk 0:01:45]}  Rf8 {[%clk 0:01:15]} 32. g3 {[%clk 0:01:44]}  g5 {[%clk 0:01:15]} 33. Kf2 {[%clk 0:01:06]}  gxh4 {[%clk 0:01:12]} 34. gxh4 {[%clk 0:01:07]}  Qxh4+ {[%clk 0:01:11]} 35. Rg3+ {[%clk 0:01:06]}  Rg7 {[%clk 0:01:11]} 36. Rf3 {[%clk 0:01:04]}  Kh7 {[%clk 0:00:39]} 37. Kg2 {[%clk 0:00:57]}  Rfg8 {[%clk 0:00:32]} 0-1


[Site "https://www.chess.com"]

[Event "Titled Tuesday Blitz October 26 2021"]
[White "Ghazarian, Kirk"]
[Black "Cunjalo, Faris"]
[WhiteFideId "30908604"]
[BlackFideId "14410710"]
[WhiteElo "2003"]
[BlackElo "2234"]
[Result "1-0"]
[Round "02"]
[TimeControl "180+1"]
[Date "2021.10.26"]
[WhiteClock "0:00:05"]
[BlackClock "0:01:52"]

1. d4 {[%clk 0:03:00]}  g6 {[%clk 0:02:57]} 2. Bf4 {[%clk 0:03:00]}  Bg7 {[%clk 0:02:58]} 3. Nc3 {[%clk 0:03:00]}  d6 {[%clk 0:02:55]} 4. e4 {[%clk 0:03:00]}  Nd7 {[%clk 0:02:54]} 5. Qd2 {[%clk 0:03:00]}  e5 {[%clk 0:02:54]} 6. Bg5 {[%clk 0:02:56]}  Ngf6 {[%clk 0:02:48]} 7. Nge2 {[%clk 0:02:46]}  h6 {[%clk 0:02:45]} 8. Bh4 {[%clk 0:02:39]}  Qe7 {[%clk 0:02:27]} 9. Nd5 {[%clk 0:02:33]}  Qd8 {[%clk 0:02:28]} 10. Nxf6+ {[%clk 0:02:16]}  Bxf6 {[%clk 0:02:27]} 11. Bxf6 {[%clk 0:02:15]}  Nxf6 {[%clk 0:02:19]} 12. dxe5 {[%clk 0:02:07]}  dxe5 {[%clk 0:02:20]} 13. Qxd8+ {[%clk 0:02:08]}  Kxd8 {[%clk 0:02:21]} 14. Nc3 {[%clk 0:01:59]}  Be6 {[%clk 0:02:18]} 15. Bd3 {[%clk 0:01:52]}  c6 {[%clk 0:02:17]} 16. a4 {[%clk 0:01:42]}  a5 {[%clk 0:02:16]} 17. Nd1 {[%clk 0:01:39]}  Nd7 {[%clk 0:02:12]} 18. Ne3 {[%clk 0:01:32]}  Nc5 {[%clk 0:02:12]} 19. f3 {[%clk 0:01:14]}  Ke7 {[%clk 0:02:13]} 20. Ke2 {[%clk 0:01:10]}  Rhd8 {[%clk 0:02:13]} 21. Rhd1 {[%clk 0:01:09]}  Rd4 {[%clk 0:02:13]} 22. b3 {[%clk 0:01:01]}  Rad8 {[%clk 0:02:08]} 23. Bc4 {[%clk 0:01:02]}  f5 {[%clk 0:02:08]} 24. exf5 {[%clk 0:00:55]}  gxf5 {[%clk 0:02:07]} 25. Bxe6 {[%clk 0:00:47]}  Nxe6 {[%clk 0:02:07]} 26. Nxf5+ {[%clk 0:00:45]}  Kf6 {[%clk 0:02:02]} 27. Nxd4 {[%clk 0:00:45]}  exd4 {[%clk 0:02:03]} 28. Kf2 {[%clk 0:00:43]}  c5 {[%clk 0:01:58]} 29. Re1 {[%clk 0:00:43]}  Nf4 {[%clk 0:01:58]} 30. Re4 {[%clk 0:00:42]}  Nd5 {[%clk 0:01:58]} 31. Rae1 {[%clk 0:00:42]}  Ne3 {[%clk 0:01:58]} 32. R1xe3 {[%clk 0:00:37]}  dxe3+ {[%clk 0:01:59]} 33. Kxe3 {[%clk 0:00:36]}  Rd1 {[%clk 0:02:00]} 34. Rc4 {[%clk 0:00:32]}  b6 {[%clk 0:02:00]} 35. h4 {[%clk 0:00:30]}  Re1+ {[%clk 0:01:55]} 36. Kf4 {[%clk 0:00:28]}  Re2 {[%clk 0:01:54]} 37. g4 {[%clk 0:00:27]}  Rd2 {[%clk 0:01:52]} 38. g5+ {[%clk 0:00:23]}  hxg5+ {[%clk 0:01:53]} 39. hxg5+ {[%clk 0:00:22]}  Kg6 {[%clk 0:01:54]} 40. Re4 {[%clk 0:00:21]}  Rxc2 {[%clk 0:01:55]} 41. Re6+ {[%clk 0:00:21]}  Kg7 {[%clk 0:01:55]} 42. Rxb6 {[%clk 0:00:21]}  c4 {[%clk 0:01:56]} 43. Kf5 {[%clk 0:00:15]}  Rc3 {[%clk 0:01:53]} 44. Rb7+ {[%clk 0:00:14]}  Kf8 {[%clk 0:01:54]} 45. bxc4 {[%clk 0:00:09]}  Rxf3+ {[%clk 0:01:54]} 46. Kg6 {[%clk 0:00:09]}  Rf4 {[%clk 0:01:55]} 47. Rc7 {[%clk 0:00:08]}  Rd4 {[%clk 0:01:48]} 48. Rc8+ {[%clk 0:00:08]}  Ke7 {[%clk 0:01:49]} 49. Kg7 {[%clk 0:00:08]}  Kd7 {[%clk 0:01:49]} 50. Rc5 {[%clk 0:00:08]}  Rg4 {[%clk 0:01:50]} 51. g6 {[%clk 0:00:08]}  Ke7 {[%clk 0:01:50]} 52. Rxa5 {[%clk 0:00:06]}  Rxc4 {[%clk 0:01:50]} 53. Re5+ {[%clk 0:00:06]}  Kd6 {[%clk 0:01:48]} 54. Re1 {[%clk 0:00:06]}  Rxa4 {[%clk 0:01:49]} 55. Kh7 {[%clk 0:00:06]}  Rh4+ {[%clk 0:01:50]} 56. Kg8 {[%clk 0:00:06]}  Kd7 {[%clk 0:01:48]} 57. g7 {[%clk 0:00:06]}  Kd6 {[%clk 0:01:49]} 58. Rf1 {[%clk 0:00:04]}  Ke7 {[%clk 0:01:49]} 59. Re1+ {[%clk 0:00:04]}  Kd7 {[%clk 0:01:49]} 60. Re5 {[%clk 0:00:04]}  Kd6 {[%clk 0:01:50]} 61. Re8 {[%clk 0:00:04]}  Kd7 {[%clk 0:01:50]} 62. Re3 {[%clk 0:00:04]}  Kd6 {[%clk 0:01:50]} 63. Kf7 {[%clk 0:00:04]}  Rf4+ {[%clk 0:01:50]} 64. Kg6 {[%clk 0:00:05]}  Rg4+ {[%clk 0:01:51]} 65. Kf6 {[%clk 0:00:05]}  Rg1 {[%clk 0:01:52]} 66. Rf3 {[%clk 0:00:05]} 1-0


[Site "https://www.chess.com"]

[Event "Titled Tuesday Blitz October 26 2021"]
[White "Gledura, Benjamin"]
[Black "Martin Carmona, Gaston Manuel"]
[WhiteFideId "712779"]
[BlackFideId "22284567"]
[WhiteElo "2326"]
[BlackElo "2161"]
[Result "1-0"]
[Round "02"]
[TimeControl "180+1"]
[Date "2021.10.26"]
[WhiteClock "0:01:48"]
[BlackClock "0:00:17"]

1. e4 {[%clk 0:03:00]}  c5 {[%clk 0:02:58]} 2. Nf3 {[%clk 0:03:00]}  d6 {[%clk 0:02:59]} 3. Nc3 {[%clk 0:03:00]}  Nf6 {[%clk 0:02:59]} 4. Bb5+ {[%clk 0:02:59]}  Nbd7 {[%clk 0:02:57]} 5. O-O {[%clk 0:02:58]}  g6 {[%clk 0:02:47]} 6. d4 {[%clk 0:02:56]}  cxd4 {[%clk 0:02:46]} 7. Nxd4 {[%clk 0:02:57]}  Bg7 {[%clk 0:02:45]} 8. a4 {[%clk 0:02:56]}  a6 {[%clk 0:02:44]} 9. Be2 {[%clk 0:02:54]}  O-O {[%clk 0:02:44]} 10. Re1 {[%clk 0:02:55]}  Nc5 {[%clk 0:02:35]} 11. Bf1 {[%clk 0:02:53]}  b6 {[%clk 0:02:27]} 12. Nc6 {[%clk 0:02:52]}  Qc7 {[%clk 0:02:23]} 13. Nd5 {[%clk 0:02:52]}  Nxd5 {[%clk 0:02:23]} 14. exd5 {[%clk 0:02:53]}  e5 {[%clk 0:02:23]} 15. b4 {[%clk 0:02:47]}  Nd7 {[%clk 0:02:19]} 16. Ra3 {[%clk 0:02:48]}  Nb8 {[%clk 0:02:05]} 17. Rc3 {[%clk 0:02:45]}  Qd7 {[%clk 0:02:05]} 18. b5 {[%clk 0:02:41]}  f5 {[%clk 0:01:48]} 19. Ba3 {[%clk 0:02:38]}  e4 {[%clk 0:01:47]} 20. Nxb8 {[%clk 0:02:36]}  Rxb8 {[%clk 0:01:46]} 21. Rc6 {[%clk 0:02:36]}  Be5 {[%clk 0:01:43]} 22. bxa6 {[%clk 0:02:36]}  Qe7 {[%clk 0:01:28]} 23. Qb1 {[%clk 0:02:28]}  Bd7 {[%clk 0:00:53]} 24. Rxb6 {[%clk 0:02:26]}  Rxb6 {[%clk 0:00:54]} 25. Qxb6 {[%clk 0:02:26]}  Bxa4 {[%clk 0:00:55]} 26. c4 {[%clk 0:02:10]}  Qd8 {[%clk 0:00:43]} 27. c5 {[%clk 0:02:09]}  dxc5 {[%clk 0:00:39]} 28. Bxc5 {[%clk 0:02:06]}  Qxb6 {[%clk 0:00:38]} 29. Bxb6 {[%clk 0:02:06]}  Ra8 {[%clk 0:00:32]} 30. a7 {[%clk 0:02:06]}  Bd7 {[%clk 0:00:31]} 31. Ba6 {[%clk 0:02:04]}  Bc8 {[%clk 0:00:31]} 32. Bb5 {[%clk 0:02:00]}  Bb7 {[%clk 0:00:26]} 33. Bc6 {[%clk 0:02:00]}  Bxc6 {[%clk 0:00:24]} 34. dxc6 {[%clk 0:02:01]}  Kf7 {[%clk 0:00:25]} 35. g3 {[%clk 0:02:01]}  Ke7 {[%clk 0:00:25]} 36. Rd1 {[%clk 0:02:01]}  Bd6 {[%clk 0:00:23]} 37. c7 {[%clk 0:01:54]}  Bxc7 {[%clk 0:00:22]} 38. Bxc7 {[%clk 0:01:53]}  Rxa7 {[%clk 0:00:23]} 39. Bf4 {[%clk 0:01:53]}  Ra2 {[%clk 0:00:22]} 40. h4 {[%clk 0:01:52]}  Kf6 {[%clk 0:00:22]} 41. Rd6+ {[%clk 0:01:52]}  Kf7 {[%clk 0:00:22]} 42. Rc6 {[%clk 0:01:52]}  Rb2 {[%clk 0:00:21]} 43. Rc7+ {[%clk 0:01:52]}  Kf6 {[%clk 0:00:22]} 44. Rxh7 {[%clk 0:01:52]}  Ke6 {[%clk 0:00:23]} 45. Rg7 {[%clk 0:01:50]}  Kd5 {[%clk 0:00:23]} 46. Rxg6 {[%clk 0:01:50]}  e3 {[%clk 0:00:24]} 47. Bxe3 {[%clk 0:01:50]}  Ke4 {[%clk 0:00:25]} 48. Kg2 {[%clk 0:01:50]}  f4 {[%clk 0:00:24]} 49. Rg4 {[%clk 0:01:50]}  Kf5 {[%clk 0:00:23]} 50. Rxf4+ {[%clk 0:01:51]}  Kg6 {[%clk 0:00:24]} 51. g4 {[%clk 0:01:51]}  Kh7 {[%clk 0:00:24]} 52. h5 {[%clk 0:01:52]}  Rb5 {[%clk 0:00:24]} 53. Bd4 {[%clk 0:01:51]}  Rb4 {[%clk 0:00:23]} 54. g5 {[%clk 0:01:48]}  Rb5 {[%clk 0:00:22]} 55. g6+ {[%clk 0:01:48]}  Kh6 {[%clk 0:00:22]} 56. g7 {[%clk 0:01:48]}  Rg5+ {[%clk 0:00:17]} 57. Kh3 {[%clk 0:01:47]}  Kxh5 {[%clk 0:00:17]} 58. Rh4+ {[%clk 0:01:48]} 1-0


[Site "https://www.chess.com"]

[Event "Titled Tuesday Blitz October 26 2021"]
[White "Janaszak, Dawid"]
[Black "Sanal, Vahap"]
[WhiteFideId "1119206"]
[BlackFideId "6300545"]
[WhiteElo "2215"]
[BlackElo "2492"]
[Result "1-0"]
[Round "02"]
[TimeControl "180+1"]
[Date "2021.10.26"]
[WhiteClock "0:00:12"]
[BlackClock "0:00:12"]

1. e4 {[%clk 0:03:00]}  d6 {[%clk 0:02:58]} 2. Nc3 {[%clk 0:03:00]}  Nf6 {[%clk 0:02:59]} 3. d4 {[%clk 0:02:59]}  e5 {[%clk 0:02:59]} 4. Nge2 {[%clk 0:02:57]}  Nbd7 {[%clk 0:03:00]} 5. g3 {[%clk 0:02:57]}  Be7 {[%clk 0:03:01]} 6. Bg2 {[%clk 0:02:57]}  c6 {[%clk 0:03:01]} 7. a4 {[%clk 0:02:56]}  b6 {[%clk 0:02:58]} 8. h3 {[%clk 0:02:50]}  a6 {[%clk 0:02:56]} 9. g4 {[%clk 0:02:41]}  O-O {[%clk 0:02:54]} 10. O-O {[%clk 0:02:32]}  Rb8 {[%clk 0:02:53]} 11. Be3 {[%clk 0:02:27]}  b5 {[%clk 0:02:53]} 12. axb5 {[%clk 0:02:28]}  axb5 {[%clk 0:02:54]} 13. Ng3 {[%clk 0:02:21]}  exd4 {[%clk 0:02:50]} 14. Bxd4 {[%clk 0:02:14]}  Ne5 {[%clk 0:02:51]} 15. g5 {[%clk 0:02:10]}  Ne8 {[%clk 0:02:48]} 16. f4 {[%clk 0:02:09]}  Nc4 {[%clk 0:02:48]} 17. b3 {[%clk 0:02:07]}  Nb6 {[%clk 0:02:45]} 18. h4 {[%clk 0:01:58]}  b4 {[%clk 0:02:46]} 19. Na4 {[%clk 0:01:48]}  Nxa4 {[%clk 0:02:45]} 20. Rxa4 {[%clk 0:01:48]}  c5 {[%clk 0:02:45]} 21. Bb2 {[%clk 0:01:43]}  Bd7 {[%clk 0:02:41]} 22. Ra1 {[%clk 0:01:35]}  Bb5 {[%clk 0:02:40]} 23. Re1 {[%clk 0:01:32]}  Nc7 {[%clk 0:02:35]} 24. Nf5 {[%clk 0:01:31]}  Ne6 {[%clk 0:02:34]} 25. Qg4 {[%clk 0:01:20]}  Re8 {[%clk 0:02:35]} 26. Rad1 {[%clk 0:01:15]}  Bf8 {[%clk 0:02:35]} 27. e5 {[%clk 0:01:13]}  g6 {[%clk 0:02:28]} 28. Nxd6 {[%clk 0:01:12]}  Bxd6 {[%clk 0:02:28]} 29. exd6 {[%clk 0:01:12]}  Bd7 {[%clk 0:02:24]} 30. Qf3 {[%clk 0:00:51]}  Qb6 {[%clk 0:02:19]} 31. Kh1 {[%clk 0:00:49]}  Nd4 {[%clk 0:02:09]} 32. Bxd4 {[%clk 0:00:45]}  cxd4 {[%clk 0:02:10]} 33. Qd5 {[%clk 0:00:43]}  Bf5 {[%clk 0:01:56]} 34. Kh2 {[%clk 0:00:28]}  d3 {[%clk 0:01:34]} 35. cxd3 {[%clk 0:00:25]}  Rbd8 {[%clk 0:01:26]} 36. Re7 {[%clk 0:00:20]}  Rxe7 {[%clk 0:01:04]} 37. dxe7 {[%clk 0:00:21]}  Re8 {[%clk 0:01:05]} 38. Re1 {[%clk 0:00:18]}  Qc7 {[%clk 0:00:39]} 39. Qe5 {[%clk 0:00:18]}  Qd7 {[%clk 0:00:35]} 40. Bd5 {[%clk 0:00:17]}  Qa7 {[%clk 0:00:26]} 41. Re2 {[%clk 0:00:12]}  Qd7 {[%clk 0:00:18]} 42. Bc4 {[%clk 0:00:10]}  Be6 {[%clk 0:00:13]} 43. Bxe6 {[%clk 0:00:10]}  fxe6 {[%clk 0:00:10]} 44. Qxe6+ {[%clk 0:00:11]}  Qxe6 {[%clk 0:00:11]} 45. Rxe6 {[%clk 0:00:11]}  Kf7 {[%clk 0:00:12]} 46. Re4 {[%clk 0:00:11]}  Rc8 {[%clk 0:00:10]} 47. e8=Q+ {[%clk 0:00:10]}  Rxe8 {[%clk 0:00:10]} 48. Rxe8 {[%clk 0:00:11]}  Kxe8 {[%clk 0:00:11]} 49. Kg3 {[%clk 0:00:11]}  Ke7 {[%clk 0:00:12]} 50. Kf3 {[%clk 0:00:12]}  h6 {[%clk 0:00:12]} 51. gxh6 {[%clk 0:00:12]} 1-0


[Site "https://www.chess.com"]